bitfinex/quotes_BTCUSD_20240715
["timestamp","ask_amount","ask_price","bid_price","bid_amount"]
[1721025992614,0.06,63118.0,63109.0,0.4704384]
[1721025992814,0.1397,63120.0,63109.0,0.4704384]
[1721025993222,0.0797,63120.0,63110.0,0.142606]
[1721025993348,0.0797,63120.0,63109.0,0.3278304]
[1721025993548,0.06,63118.0,63109.0,0.4704404]
[1721025993791,0.0797,63120.0,63109.0,0.3278304]
[1721025993792,0.06,63114.0,63109.0,0.3278304]
[1721025994559,0.0794,63110.0,63102.0,0.3278304]
[1721025994738,0.41135057,63109.0,63108.0,0.08105238]
[1721025994938,0.41135057,63109.0,63108.0,0.503336]
[1721025995391,0.16454023,63109.0,63108.0,0.503336]
[1721025995605,0.41135057,63109.0,63108.0,0.218112]
[1721025995870,0.41135057,63109.0,63108.0,0.503337]
[1721025996088,0.41135057,63109.0,63108.0,0.565137]
[1721025996301,0.16454023,63109.0,63108.0,0.565137]
[1721025996504,0.41135057,63109.0,63108.0,0.565137]
[1721025997130,0.41235057,63109.0,63108.0,0.575137]
[1721025997271,0.41235057,63109.0,63108.0,0.584137]
[1721025997703,0.41235057,63109.0,63108.0,1.154587]
[1721025998365,0.41235057,63109.0,63108.0,0.869362]
[1721025998778,0.41235057,63109.0,63108.0,0.584137]
[1721025999677,0.41235057,63109.0,63108.0,0.869362]
[1721026000973,0.41235057,63109.0,63108.0,1.214587]
[1721026001185,0.41235057,63109.0,63108.0,1.274587]
[1721026001186,0.16554023,63109.0,63108.0,1.274587]
[1721026001395,0.16554023,63109.0,63108.0,1.559812]
[1721026001822,0.16454023,63109.0,63108.0,1.263587]
[1721026002022,0.16454023,63109.0,63108.0,1.253587]
[1721026002258,0.16554023,63109.0,63108.0,1.267587]
[1721026002468,0.16554023,63109.0,63108.0,1.552812]
[1721026002678,0.16554023,63109.0,63108.0,1.267587]
[1721026002888,0.16554023,63109.0,63108.0,1.552812]
[1721026003518,0.16454023,63109.0,63108.0,1.253587]
[1721026003739,0.16454023,63109.0,63108.0,1.28465053]
[1721026003944,0.16454023,63109.0,63108.0,1.55587553]
[1721026004148,0.16454023,63109.0,63108.0,1.552812]
[1721026004560,0.16454023,63109.0,63108.0,1.566812]
[1721026005210,0.16454023,63109.0,63108.0,1.538812]
[1721026005454,0.16454023,63109.0,63108.0,1.552812]
[1721026005632,0.16454023,63109.0,63108.0,1.566812]
[1721026006279,0.16454023,63109.0,63108.0,1.56900965]
[1721026007370,0.16454023,63109.0,63108.0,1.866812]
[1721026007594,0.16454023,63109.0,63108.0,2.39602991]
[1721026007804,0.16454023,63109.0,63108.0,2.52762759]
[1721026007969,0.16454023,63109.0,63108.0,2.32762633]
[1721026008157,0.16454023,63109.0,63108.0,1.58370491]
[1721026008361,0.16454023,63109.0,63108.0,1.481587]
[1721026008560,0.16454023,63109.0,63108.0,2.181587]
[1721026008749,0.16454023,63109.0,63108.0,1.766812]
[1721026008945,0.16454023,63109.0,63108.0,2.466812]
[1721026009169,0.16454023,63109.0,63108.0,2.366812]
[1721026009369,0.16454023,63109.0,63108.0,1.921587]
[1721026009573,0.16454023,63109.0,63108.0,1.721587]
[1721026009749,0.16454023,63109.0,63108.0,1.72352149]
[1721026010185,0.16454023,63109.0,63108.0,1.721587]
[1721026010384,0.16454023,63109.0,63108.0,1.72388569]
[1721026010562,0.16454023,63109.0,63108.0,1.721587]
[1721026010964,0.16454023,63109.0,63108.0,1.92334651]
[1721026011423,0.16454023,63109.0,63108.0,1.921587]
[1721026011748,0.16454023,63109.0,63108.0,1.981587]
[1721026012156,0.16454023,63109.0,63108.0,1.281587]
[1721026012610,0.16454023,63109.0,63108.0,2.081587]
[1721026013068,0.16454023,63109.0,63108.0,2.366812]
[1721026013243,0.16454023,63109.0,63108.0,2.081587]
[1721026014758,0.16454023,63109.0,63108.0,2.021587]
[1721026015725,0.16454023,63109.0,63108.0,2.081587]
[1721026015840,0.16454023,63109.0,63108.0,2.021587]
[1721026017385,0.16454023,63109.0,63108.0,2.081587]
[1721026018156,0.16454023,63109.0,63108.0,2.145087]
[1721026018948,0.16454023,63109.0,63108.0,2.430312]
[1721026019157,0.16454023,63109.0,63108.0,2.145087]
[1721026020558,0.16454023,63109.0,63108.0,2.085087]
[1721026021966,0.16454023,63109.0,63108.0,2.430312]
[1721026022403,0.16454023,63109.0,63108.0,2.630312]
[1721026022613,0.16454023,63109.0,63108.0,3.19113031]
[1721026023619,0.16454023,63109.0,63108.0,3.19112687]
[1721026024587,0.16454023,63109.0,63108.0,3.29112687]
[1721026024789,0.16454023,63109.0,63108.0,3.09112687]
[1721026024988,0.16454023,63109.0,63108.0,2.60190896]
[1721026025202,0.16454023,63109.0,63108.0,2.66190896]
[1721026025402,0.16454023,63109.0,63108.0,2.66191772]
[1721026025648,0.16454023,63109.0,63108.0,2.530312]
[1721026026251,0.16454023,63109.0,63108.0,2.66191858]
[1721026026406,0.16454023,63109.0,63108.0,2.99113649]
[1721026027875,0.16454023,63109.0,63108.0,2.50191858]
[1721026028443,0.16454023,63109.0,63108.0,2.56191858]
[1721026029512,0.16454023,63109.0,63108.0,2.66191858]
[1721026029831,0.16454023,63109.0,63108.0,2.66191277]
[1721026030238,0.16454023,63109.0,63108.0,2.530312]
[1721026030574,0.16454023,63109.0,63108.0,2.7277099]
[1721026030776,0.16454023,63109.0,63108.0,2.5619106]
[1721026031097,0.16454023,63109.0,63108.0,2.6619106]
[1721026031346,0.16454023,63109.0,63108.0,2.5619106]
[1721026031775,0.41130581,63109.0,63108.0,2.6619106]
[1721026031948,0.16454023,63109.0,63108.0,2.6619106]
[1721026032183,0.16454023,63109.0,63108.0,2.530312]
[1721026032335,0.16454023,63109.0,63108.0,2.66191905]
[1721026032744,0.16454023,63109.0,63108.0,2.56191905]
[1721026032942,0.16454023,63109.0,63108.0,2.66191905]
[1721026033305,0.16454023,63109.0,63108.0,2.530312]
[1721026034148,0.01,63110.0,63109.0,1.11827]
[1721026034445,0.17450864,63110.0,63109.0,1.11827]
[1721026035365,0.17450864,63110.0,63109.0,1.07227]
[1721026035733,0.17450864,63110.0,63109.0,1.08627]
[1721026035943,0.17450864,63110.0,63109.0,1.52627]
[1721026036152,0.55928937,63110.0,63109.0,0.014]
[1721026036552,0.55928937,63110.0,63109.0,0.028]
[1721026036786,0.61928937,63110.0,63109.0,0.028]
[1721026036921,0.55928937,63110.0,63109.0,0.014]
[1721026037725,0.42128937,63110.0,63108.0,0.46034959]
[1721026037960,0.61008937,63109.0,63108.0,0.46034959]
[1721026038158,0.83569937,63109.0,63108.0,0.46034959]
[1721026038323,0.83569937,63109.0,63108.0,0.000913]
[1721026038642,1.12091937,63109.0,63108.0,0.000913]
[1721026039239,1.14572059,63109.0,63108.0,0.004913]
[1721026039440,1.12091937,63109.0,63108.0,0.004913]
[1721026039639,1.12091937,63109.0,63108.0,0.000913]
[1721026040083,1.12091937,63109.0,63108.0,0.002913]
[1721026040299,0.55008937,63109.0,63108.0,0.002913]
[1721026040475,0.67008937,63109.0,63108.0,0.002913]
[1721026040884,0.81269937,63109.0,63108.0,0.005913]
[1721026041084,0.81269937,63109.0,63108.0,0.002913]
[1721026041494,0.55008937,63109.0,63108.0,0.002913]
[1721026041696,0.61008937,63109.0,63108.0,0.002913]
[1721026041891,0.67008937,63109.0,63108.0,0.003913]
[1721026042293,0.67008937,63109.0,63108.0,0.001913]
[1721026042494,0.83869937,63109.0,63108.0,0.001913]
[1721026042875,0.77869937,63109.0,63108.0,0.001913]
[1721026043114,0.77569937,63109.0,63108.0,0.001913]
[1721026043348,1.12091937,63109.0,63108.0,0.003913]
[1721026043864,0.57308937,63109.0,63108.0,0.003913]
[1721026044160,0.57308937,63109.0,63108.0,0.002913]
[1721026044390,0.71669937,63109.0,63108.0,0.002913]
[1721026044647,0.57408937,63109.0,63108.0,0.002913]
[1721026044995,0.57508937,63109.0,63108.0,0.002913]
[1721026045201,0.57508937,63109.0,63108.0,0.000913]
[1721026045398,0.57512937,63109.0,63108.0,0.000913]
[1721026045607,0.57812937,63109.0,63108.0,0.000913]
[1721026045818,0.57612937,63109.0,63108.0,0.000913]
[1721026046156,0.57312937,63109.0,63108.0,0.000913]
[1721026046373,0.55012937,63109.0,63108.0,0.000913]
[1721026046602,0.55012937,63109.0,63108.0,0.002913]
[1721026047301,0.55012937,63109.0,63108.0,0.003913]
[1721026047740,0.55012937,63109.0,63108.0,0.002913]
[1721026047974,0.55012937,63109.0,63108.0,0.000913]
[1721026048204,0.55012937,63109.0,63108.0,0.003913]
[1721026048401,0.67012937,63109.0,63108.0,0.004913]
[1721026048579,0.61012937,63109.0,63108.0,0.004913]
[1721026048754,0.67012937,63109.0,63108.0,0.002913]
[1721026048957,0.69312937,63109.0,63108.0,0.002913]
[1721026049155,0.69312937,63109.0,63108.0,0.006913]
[1721026049356,0.69293865,63109.0,63108.0,0.006913]
[1721026049610,0.63293865,63109.0,63108.0,0.002913]
[1721026050143,0.06,63108.0,63100.0,0.00306353]
[1721026050342,0.41128937,63107.0,63100.0,0.00306353]
[1721026050550,0.41128937,63106.0,63100.0,0.00306353]
[1721026050798,0.41128937,63105.0,63099.0,0.142632]
[1721026051022,0.41128937,63104.0,63096.0,0.285278]
[1721026051270,0.41128937,63104.0,63093.0,0.3278304]
[1721026051271,0.49428937,63103.0,63097.0,0.142636]
[1721026051476,0.41128937,63102.0,63097.0,0.142636]
[1721026051694,0.41128937,63101.0,63100.0,0.002]
[1721026052104,0.41128937,63101.0,63098.0,0.142634]
[1721026052273,0.16450864,63100.0,63098.0,0.142634]
[1721026052480,0.16450864,63100.0,63096.0,0.285277]
[1721026052481,0.16450864,63099.0,63097.0,0.007]
[1721026052807,0.16450864,63098.0,63097.0,0.007]
[1721026053012,0.16450864,63098.0,63097.0,0.149637]
[1721026053227,0.16450864,63098.0,63097.0,0.434912]
[1721026053398,0.16450864,63098.0,63097.0,0.427912]
[1721026053948,0.16450864,63098.0,63097.0,0.713187]
[1721026054144,0.16450864,63098.0,63097.0,0.725187]
[1721026054379,0.16450864,63098.0,63097.0,0.713187]
[1721026054696,0.16450864,63098.0,63097.0,0.727187]
[1721026055734,0.16450864,63098.0,63097.0,0.741187]
[1721026056259,0.16450864,63098.0,63097.0,1.087662]
[1721026057191,0.16450864,63098.0,63097.0,1.073662]
[1721026057716,0.16450864,63098.0,63097.0,1.147662]
[1721026057946,0.16450864,63098.0,63097.0,1.073662]
[1721026059154,0.16454864,63098.0,63097.0,1.073662]
[1721026059330,0.16454864,63098.0,63097.0,1.147662]
[1721026059533,0.16454864,63098.0,63097.0,1.087662]
[1721026060067,0.16454864,63098.0,63097.0,1.147662]
[1721026060775,0.16454864,63098.0,63097.0,1.087662]
[1721026061655,0.16454864,63098.0,63097.0,1.026462]
[1721026062174,0.16454864,63098.0,63097.0,0.028]
[1721026062319,0.41139584,63098.0,63097.0,0.313275]
[1721026062520,0.19192302,63098.0,63097.0,0.313275]
[1721026062931,0.19192302,63098.0,63097.0,0.455912]
[1721026063375,0.43877022,63098.0,63097.0,0.455912]
[1721026065179,0.43857401,63098.0,63097.0,0.455912]
[1721026066154,0.41139584,63098.0,63097.0,0.455912]
[1721026067873,0.16454864,63098.0,63097.0,0.455912]
[1721026069179,0.16454864,63098.0,63097.0,0.741187]
[1721026071255,0.16454864,63098.0,63097.0,1.026462]
[1721026072174,0.41139584,63098.0,63097.0,1.026462]
[1721026072718,0.16454864,63098.0,63097.0,1.026462]
[1721026073122,0.16454864,63098.0,63097.0,0.741187]
[1721026073839,0.16454864,63098.0,63097.0,0.028]
[1721026073840,0.84253523,63098.0,63097.0,0.028]
[1721026074042,1.27561059,63098.0,63097.0,0.028]
[1721026074248,1.82405297,63098.0,63097.0,0.028]
[1721026074566,1.67147013,63098.0,63097.0,0.028]
[1721026074778,0.06,63092.0,63084.0,0.142666]
[1721026074952,0.64066913,63091.0,63084.0,0.4704964]
[1721026075132,0.43896913,63090.0,63084.0,0.4704964]
[1721026075333,0.43896913,63089.0,63084.0,0.4704964]
[1721026075610,0.43896913,63088.0,63084.0,0.4704964]
[1721026075809,0.43896913,63087.0,63084.0,0.4704964]
[1721026075961,0.43896913,63086.0,63084.0,0.3278304]
[1721026076120,0.41135584,63085.0,63084.0,0.3278304]
[1721026076325,0.19224974,63085.0,63084.0,0.3348304]
[1721026076526,0.41135584,63085.0,63084.0,0.3348304]
[1721026076839,0.41135584,63085.0,63066.0,0.04731416]
[1721026076840,0.12,63068.0,63064.0,0.07101403]
[1721026077188,0.06,63083.0,63066.0,0.428122]
[1721026077189,0.28450864,63067.0,63066.0,0.428122]
[1721026077389,0.28450864,63067.0,63066.0,0.142707]
[1721026077883,0.28450864,63067.0,63065.0,0.063548]
[1721026078120,0.28757217,63066.0,63065.0,0.063548]
[1721026078436,0.28757217,63066.0,63064.0,0.3278304]
[1721026078437,0.1985,63065.0,63064.0,0.3278304]
[1721026078634,0.60998926,63065.0,63064.0,0.3278304]
[1721026079510,0.12,63063.0,63062.0,0.009174]
[1721026079751,0.28450864,63063.0,63062.0,0.009174]
[1721026079950,0.16450864,63063.0,63062.0,0.15189]
[1721026081478,0.28450864,63063.0,63062.0,0.009174]
[1721026082110,0.28450864,63063.0,63062.0,0.15189]
[1721026082346,0.16550864,63063.0,63062.0,0.16589]
[1721026082520,0.16650864,63063.0,63062.0,0.17989]
[1721026082662,0.16450864,63063.0,63062.0,0.15189]
[1721026083067,0.28550864,63063.0,63062.0,0.16589]
[1721026083398,0.28550864,63063.0,63062.0,0.15189]
[1721026083608,0.28550864,63063.0,63062.0,0.16489]
[1721026083609,0.28650864,63063.0,63062.0,0.16489]
[1721026084593,0.28650864,63063.0,63062.0,0.022174]
[1721026084801,0.28650864,63063.0,63062.0,0.036174]
[1721026084802,0.28750864,63063.0,63062.0,0.036174]
[1721026085086,0.28550864,63063.0,63062.0,0.022174]
[1721026085407,0.28650864,63063.0,63062.0,0.036174]
[1721026086047,0.16650864,63063.0,63062.0,0.17889]
[1721026086190,0.16650864,63063.0,63062.0,0.97480838]
[1721026086820,0.16650864,63063.0,63062.0,0.893756]
[1721026088519,0.16650864,63063.0,63062.0,0.812156]
[1721026088983,0.42380864,63063.0,63062.0,0.036174]
[1721026089183,0.67080523,63063.0,63062.0,0.036174]
[1721026092270,0.81151923,63063.0,63062.0,0.009174]
[1721026092472,1.17994723,63063.0,63062.0,0.009174]
[1721026092630,1.11994723,63063.0,63062.0,0.013174]
[1721026092980,1.12094723,63063.0,63062.0,0.023174]
[1721026093149,1.18078266,63063.0,63062.0,0.026174]
[1721026093512,1.18078266,63063.0,63062.0,0.023174]
[1721026093513,1.46621066,63063.0,63062.0,0.023174]
[1721026094133,1.46521066,63063.0,63062.0,0.009174]
[1721026094338,1.40521066,63063.0,63062.0,0.009174]
[1721026094568,1.11978266,63063.0,63062.0,0.009174]
[1721026094721,0.83435466,63063.0,63062.0,0.009174]
[1721026095582,0.83635466,63063.0,63062.0,0.009174]
[1721026095894,0.66864066,63063.0,63062.0,0.009174]
[1721026096318,0.67564066,63063.0,63062.0,0.009174]
[1721026096735,0.67064066,63063.0,63062.0,0.009174]
[1721026097131,0.67064066,63063.0,63062.0,0.014174]
[1721026097337,0.66864066,63063.0,63062.0,0.014174]
[1721026097550,0.53134066,63063.0,63062.0,0.017174]
[1721026097752,0.28434407,63063.0,63062.0,0.017174]
[1721026097889,0.53134848,63063.0,63062.0,0.017174]
[1721026098099,0.28434407,63063.0,63062.0,0.017174]
[1721026098741,0.16434407,63063.0,63062.0,0.017174]
[1721026099345,0.16434407,63063.0,63062.0,0.15989]
[1721026099886,0.16438407,63063.0,63062.0,0.15989]
[1721026100088,0.16438407,63063.0,63062.0,0.440323]
[1721026100231,0.16538407,63063.0,63062.0,0.16089]
[1721026100422,0.16538407,63063.0,63062.0,0.15789]
[1721026100623,0.16538407,63063.0,63062.0,0.447323]
[1721026100830,0.16538407,63063.0,63062.0,0.732756]
[1721026101241,0.16538407,63063.0,63062.0,1.018189]
[1721026102074,0.16538407,63063.0,63062.0,1.161689]
[1721026102298,0.16438407,63063.0,63062.0,1.155689]
[1721026102578,0.16538407,63063.0,63062.0,1.168689]
[1721026102878,0.16538407,63063.0,63062.0,1.164689]
[1721026103036,0.16438407,63063.0,63062.0,1.151689]
[1721026103436,0.16538407,63063.0,63062.0,1.162689]
[1721026104186,0.16438407,63063.0,63062.0,1.58282034]
[1721026104358,0.16438407,63063.0,63062.0,1.81138734]
[1721026104562,0.16538407,63063.0,63062.0,1.81138734]
[1721026105353,0.16538407,63063.0,63062.0,1.79738734]
[1721026105953,0.16538407,63063.0,63062.0,1.81138734]
[1721026106367,0.16538407,63063.0,63062.0,1.78338734]
[1721026106368,0.16438407,63063.0,63062.0,1.78338734]
[1721026106502,0.16538407,63063.0,63062.0,0.37618825]
[1721026106691,0.28538407,63063.0,63062.0,0.037174]
[1721026106896,0.28538407,63063.0,63062.0,0.023174]
[1721026106897,0.28379848,63063.0,63062.0,0.023174]
[1721026107091,0.53076629,63063.0,63062.0,0.009174]
[1721026107313,0.53176629,63063.0,63062.0,0.023174]
[1721026107550,0.52976629,63063.0,63062.0,0.009174]
[1721026108006,0.41076629,63063.0,63062.0,0.736756]
[1721026108436,0.41076629,63063.0,63062.0,0.437323]
[1721026108437,4e-05,63063.0,63062.0,0.437323]
[1721026108627,0.24701496,63063.0,63062.0,0.451323]
[1721026108782,0.24682411,63063.0,63062.0,0.451323]
[1721026108985,0.24682411,63063.0,63062.0,0.437323]
[1721026109470,0.24682411,63063.0,63062.0,0.451323]
[1721026109890,0.24682411,63063.0,63062.0,0.437323]
[1721026110245,0.24782411,63063.0,63062.0,0.451323]
[1721026110450,0.24782411,63063.0,63062.0,0.465323]
[1721026111003,0.24682411,63063.0,63062.0,0.451323]
[1721026111277,0.00083,63064.0,63063.0,1.02237]
[1721026111482,0.00083,63064.0,63063.0,1.23511881]
[1721026111654,0.0796,63084.0,63076.0,0.84637]
[1721026111956,0.12,63086.0,63076.0,0.84637]
[1721026111957,0.12,63086.0,63083.0,0.142667]
[1721026112197,0.12,63084.0,63083.0,0.4704974]
[1721026112554,0.0765,63090.0,63083.0,0.4704974]
[1721026112555,0.12,63086.0,63083.0,0.4704974]
[1721026112907,0.12,63088.0,63086.0,0.142661]
[1721026113107,0.12,63088.0,63084.0,0.285333]
[1721026113312,0.12,63090.0,63089.0,0.142655]
[1721026113426,0.4796,63093.0,63089.0,0.142655]
[1721026113427,0.12,63093.0,63091.0,0.14265]
[1721026113872,0.12,63093.0,63089.0,0.427964]
[1721026114072,0.12,63088.0,63087.0,0.142659]
[1721026115180,0.12,63089.0,63088.0,0.142657]
[1721026116266,0.12,63089.0,63088.0,0.427972]
[1721026116459,0.12,63089.0,63088.0,0.156657]
[1721026116810,0.12,63089.0,63088.0,0.014]
[1721026117414,0.12,63089.0,63088.0,0.025]
[1721026118017,0.12004,63089.0,63088.0,0.025]
[1721026118219,0.12004,63089.0,63088.0,0.167657]
[1721026120246,0.12004,63089.0,63088.0,0.025]
[1721026120446,0.12004,63089.0,63088.0,0.014]
[1721026120647,0.26804,63089.0,63088.0,0.014]
[1721026120848,0.26804,63089.0,63088.0,0.025]
[1721026120976,0.26804,63089.0,63088.0,0.011]
[1721026121404,0.26804,63089.0,63088.0,0.025]
[1721026121565,0.26804,63089.0,63088.0,0.014]
[1721026121763,0.26804,63089.0,63088.0,0.011]
[1721026121968,0.593695,63089.0,63088.0,0.011]
[1721026122177,0.879006,63089.0,63088.0,0.025]
[1721026122784,0.879006,63089.0,63088.0,0.011]
[1721026123191,0.819006,63089.0,63088.0,0.011]
[1721026123652,0.819006,63089.0,63074.0,0.142689]
[1721026123653,0.12,63076.0,63074.0,0.142689]
[1721026123880,0.12,63076.0,63074.0,0.4705194]
[1721026124929,0.12,63076.0,63074.0,0.4845194]
[1721026125132,0.12,63083.0,63076.0,0.0815]
[1721026125374,0.12,63086.0,63081.0,0.285346]
[1721026125577,0.12,63086.0,63081.0,0.6131764]
[1721026125777,0.12,63082.0,63081.0,0.3278304]
[1721026126884,0.28460943,63082.0,63081.0,0.4705034]
[1721026127097,0.16460943,63082.0,63081.0,0.4705034]
[1721026127499,0.16460943,63082.0,63081.0,0.8278304]
[1721026127500,0.16460365,63082.0,63081.0,0.8278304]
[1721026127724,0.59964,63089.0,63082.0,0.28534]
[1721026127725,0.12,63088.0,63082.0,0.28534]
[1721026127928,0.28459319,63088.0,63086.0,0.142661]
[1721026128124,0.16459319,63087.0,63086.0,0.142661]
[1721026128707,0.16459319,63087.0,63086.0,0.427985]
[1721026129146,0.16459319,63087.0,63086.0,0.489185]
[1721026129434,0.28459074,63088.0,63087.0,0.14266]
[1721026130745,0.28459074,63088.0,63087.0,0.15566]
[1721026130946,0.28463074,63088.0,63087.0,0.15566]
[1721026131753,0.28463074,63088.0,63087.0,0.44098]
[1721026131754,0.16463074,63088.0,63087.0,0.44098]
[1721026132146,0.16463074,63088.0,63087.0,0.45498]
[1721026132343,4e-05,63088.0,63087.0,0.45498]
[1721026132545,4e-05,63088.0,63087.0,0.44098]
[1721026132946,0.16463074,63088.0,63087.0,0.44198]
[1721026133397,4e-05,63088.0,63087.0,0.45598]
[1721026134080,4e-05,63088.0,63087.0,0.7413]
[1721026134617,4e-05,63088.0,63087.0,0.45598]
[1721026134618,0.12004,63088.0,63087.0,0.45598]
[1721026134836,0.28546074,63088.0,63087.0,0.45598]
[1721026135216,0.16546074,63088.0,63087.0,0.45598]
[1721026136044,0.16546074,63088.0,63087.0,0.44198]
[1721026136274,0.16546074,63088.0,63087.0,0.7133]
[1721026136501,0.00087,63088.0,63087.0,0.8815]
[1721026137250,0.00087,63088.0,63087.0,0.8675]
[1721026137591,0.00087,63088.0,63087.0,0.8815]
[1721026137810,0.00087,63088.0,63087.0,0.8675]
[1721026138347,0.00087,63088.0,63087.0,0.8815]
[1721026138570,0.00087,63088.0,63087.0,0.8026]
[1721026138771,0.16545137,63088.0,63087.0,0.8026]
[1721026139920,0.16545137,63088.0,63087.0,0.866125]
[1721026140546,0.28545137,63088.0,63087.0,0.519505]
[1721026141711,0.28545137,63088.0,63087.0,0.091525]
[1721026141912,0.28545137,63088.0,63087.0,0.17066]
[1721026142501,0.28545137,63088.0,63087.0,0.45598]
[1721026142676,0.16545137,63088.0,63087.0,0.45598]
[1721026143003,0.28545137,63088.0,63087.0,0.45598]
[1721026144684,0.16545137,63088.0,63087.0,0.45598]
[1721026144891,0.16545137,63088.0,63087.0,1.08962]
[1721026145070,0.16545137,63088.0,63087.0,1.16992]
[1721026145477,0.00087,63088.0,63087.0,1.16992]
[1721026145677,0.16543782,63088.0,63087.0,1.16992]
[1721026145878,0.16543782,63088.0,63087.0,1.56992]
[1721026145879,0.00087,63088.0,63087.0,1.56992]
[1721026146101,0.00087,63088.0,63087.0,1.88688842]
[1721026146487,4e-05,63089.0,63088.0,1.882817]
[1721026146688,4e-05,63093.0,63092.0,1.139845]
[1721026146936,4e-05,63093.0,63092.0,1.76541133]
[1721026147288,0.01,63100.0,63097.0,1.839812]
[1721026147495,0.01,63100.0,63097.0,2.92773611]
[1721026147697,0.01,63100.0,63097.0,3.56882174]
[1721026147806,0.01,63100.0,63097.0,3.95202093]
[1721026148015,0.01,63100.0,63097.0,3.53001204]
[1721026148370,0.01,63100.0,63097.0,3.57704127]
[1721026148668,0.01,63100.0,63097.0,3.59104127]
[1721026149128,0.01,63100.0,63097.0,4.27481773]
[1721026149343,0.01,63100.0,63097.0,3.59102119]
[1721026149552,0.01,63100.0,63097.0,3.59102137]
[1721026149726,0.01,63100.0,63097.0,3.54401204]
[1721026149928,0.01,63100.0,63097.0,3.55801204]
[1721026150136,0.01,63100.0,63097.0,3.60500294]
[1721026150347,0.01,63100.0,63097.0,3.57700294]
[1721026150497,0.01,63100.0,63097.0,3.59100294]
[1721026150861,0.01,63100.0,63097.0,3.5910017]
[1721026151014,0.01,63100.0,63097.0,3.5770017]
[1721026151216,0.01,63100.0,63097.0,3.57698862]
[1721026151435,0.01,63100.0,63097.0,2.59593624]
[1721026151633,0.01,63100.0,63097.0,3.26296293]
[1721026152155,0.01,63100.0,63097.0,3.24896293]
[1721026152321,0.01,63100.0,63097.0,3.26296293]
[1721026152523,0.01,63100.0,63097.0,2.92113253]
[1721026152924,0.01,63100.0,63097.0,2.93513253]
[1721026153241,0.01,63100.0,63097.0,3.12113253]
[1721026153663,0.01,63100.0,63097.0,3.01752491]
[1721026153967,0.01,63100.0,63097.0,3.13513186]
[1721026154168,0.01,63100.0,63097.0,3.20555325]
[1721026154576,8e-05,63098.0,63097.0,3.13512504]
[1721026154776,8e-05,63098.0,63097.0,3.14912504]
[1721026155013,8e-05,63098.0,63097.0,3.90270945]
[1721026155240,0.01,63100.0,63099.0,1.765531]
[1721026155378,0.01,63100.0,63099.0,2.91047944]
[1721026155581,0.01,63100.0,63099.0,3.19574544]
[1721026156039,0.01,63100.0,63099.0,3.90451544]
[1721026157024,0.01,63100.0,63099.0,3.91851544]
[1721026157198,0.01,63100.0,63099.0,3.78691531]
[1721026157426,0.01,63100.0,63099.0,3.9185214]
[1721026158308,0.01,63100.0,63099.0,3.9325214]
[1721026158487,0.01004,63100.0,63099.0,3.9325214]
[1721026158687,0.01004,63100.0,63099.0,3.9185214]
[1721026159100,0.01004,63100.0,63099.0,3.80091531]
[1721026159310,0.01004,63100.0,63099.0,3.91852013]
[1721026159870,0.01004,63100.0,63099.0,3.93252013]
[1721026160194,0.01004,63100.0,63099.0,4.20378613]
[1721026160360,0.01004,63100.0,63099.0,4.18978613]
[1721026160561,0.01004,63100.0,63099.0,3.87595573]
[1721026160810,0.01004,63100.0,63099.0,3.88995233]
[1721026161166,0.01004,63100.0,63099.0,3.88995474]
[1721026161734,0.00087,63109.0,63108.0,1.943587]
[1721026161979,0.00087,63109.0,63108.0,2.2714174]
[1721026162394,0.00087,63109.0,63108.0,2.2964174]
[1721026162601,0.00087,63109.0,63108.0,2.1964174]
[1721026162929,0.00087,63109.0,63108.0,2.0511174]
[1721026163075,0.00087,63109.0,63108.0,2.0651174]
[1721026163887,0.00087,63109.0,63108.0,2.0791174]
[1721026164695,0.00932782,63110.0,63109.0,0.99827]
[1721026164903,0.00932782,63110.0,63109.0,0.99823]
[1721026165100,0.00932782,63110.0,63109.0,1.20423]
[1721026166338,0.15262782,63110.0,63109.0,0.34857]
[1721026166539,0.15262782,63110.0,63108.0,0.3808304]
[1721026166540,0.12,63109.0,63108.0,0.028]
[1721026166839,0.12,63109.0,63108.0,0.014]
[1721026166840,0.50887755,63109.0,63108.0,0.014]
[1721026167021,0.75571824,63109.0,63108.0,0.014]
[1721026167404,0.75571824,63109.0,63093.0,0.5]
[1721026167405,0.1406,63101.0,63094.0,0.142643]
[1721026167642,0.16452517,63100.0,63094.0,0.142643]
[1721026167849,0.00306353,63099.0,63093.0,0.5]
[1721026168049,0.00306353,63099.0,63095.0,0.285283]
[1721026168050,0.16433442,63098.0,63095.0,0.285283]
[1721026168223,0.16433442,63098.0,63097.0,0.142637]
[1721026168424,0.16433442,63098.0,63095.0,0.285283]
[1721026168425,0.1406,63101.0,63095.0,0.285283]
[1721026168655,0.00306353,63100.0,63097.0,0.142636]
[1721026169036,0.1406,63101.0,63096.0,0.142639]
[1721026169294,0.2606,63101.0,63096.0,0.142639]
[1721026169496,0.00306353,63100.0,63096.0,0.142639]
[1721026169893,0.2606,63101.0,63096.0,0.142639]
[1721026170521,0.00306353,63100.0,63096.0,0.142639]
[1721026171100,0.2606,63101.0,63097.0,0.01]
[1721026171465,0.1406,63101.0,63096.0,0.153639]
[1721026171710,0.1406,63101.0,63096.0,0.021]
[1721026171930,0.1406,63101.0,63096.0,0.01]
[1721026172106,0.1406,63101.0,63096.0,0.012]
[1721026172310,4e-05,63100.0,63097.0,0.151636]
[1721026172711,4e-05,63100.0,63097.0,0.142636]
[1721026173482,0.12,63097.0,63096.0,0.011]
[1721026173924,0.12,63099.0,63096.0,0.011]
[1721026174126,0.12,63099.0,63096.0,0.009]
[1721026174324,0.12,63097.0,63096.0,0.009]
[1721026174704,0.12,63097.0,63092.0,0.285293]
[1721026174926,0.12,63095.0,63094.0,0.142642]
[1721026175150,0.12,63092.0,63086.0,0.348852]
[1721026175295,0.12,63092.0,63089.0,0.5]
[1721026175500,0.2683,63095.0,63089.0,0.642655]
[1721026175879,0.2683,63095.0,63092.0,0.014]
[1721026177767,0.2683,63095.0,63091.0,0.3418304]
[1721026177956,0.2683,63095.0,63091.0,0.3558304]